fUSD/lending_fUSD_20240329
["ID","MTS","AMOUNT","RATE_DAILY","PERIOD"]
[320959163,1711721527073,-151.0,0.000549,120]
[320959164,1711721527083,-151.0,0.000549,120]
[320959165,1711721527092,-151.0,0.000549,120]
[320959166,1711721527101,-153.347695,0.000549,60]
[320959167,1711721527110,-153.768911,0.000549,120]
[320959168,1711721527119,-151.0,0.000549,120]
[320959169,1711721527128,-152.166676,0.000549,120]
[320959170,1711721527137,-203.852535,0.000549,30]
[320959171,1711721527147,-203.852535,0.000549,30]
[320959172,1711721527156,-151.0,0.000549,120]
[320959173,1711721527165,-151.0,0.000549,14]
[320959174,1711721527175,-152.0,0.00054951,3]
[320959175,1711721527185,-35594.96289214,0.00054968,2]
[320959176,1711721527194,-185.51878917,0.00054998,120]
[320959177,1711721527203,-2109.42288032,0.00055,5]
[320959178,1711721527213,-10001.19662188,0.00055,30]
[320959179,1711721527222,-11376.02082177,0.00055,120]
[320959180,1711721527231,-1303.93192877,0.00055,120]
[320959181,1711721527241,-89471.39826903,0.00055,120]
[320959182,1711721527251,-3600.0,0.00055,120]
[320959183,1711721527260,-61606.77404663,0.00055,30]
[320959184,1711721527270,-1000.0,0.00055,3]
[320959185,1711721527279,-410.0,0.00055,120]
[320959186,1711721527289,-61589.77054485,0.00055,120]
[320959187,1711721527298,-64472.41736861,0.00055,30]
[320959188,1711721527307,-207.39458559,0.00055,120]
[320959189,1711721527316,-6710.06541384,0.00055,60]
[320959190,1711721527326,-1007.73524964,0.00055,2]
[320959191,1711721527335,-607.92,0.00055,30]
[320959192,1711721527344,-200.0,0.00055038,120]
[320959193,1711721527353,-151.76103172,0.00055048,63]
[320959194,1711721527362,-527.0,0.00055068,120]
[320959195,1711721527371,-500.0,0.00055068,120]
[320959196,1711721527380,-230.8312188,0.00055068,120]
[320959197,1711721527389,-520.11,0.00055068,120]
[320959198,1711721527399,-702.15,0.00055068,120]
[320959199,1711721527408,-2032.52,0.00055068,120]
[320959200,1711721527418,-523.19,0.00055068,120]
[320959201,1711721527427,-536.91,0.00055068,120]
[320959202,1711721527436,-500.0,0.00055068,120]
[320959203,1711721527446,-266.93265315,0.00055068,120]
[320959204,1711721527455,-540.69,0.00055068,120]
[320959205,1711721527465,-511.3,0.00055068,120]
[320959206,1711721527474,-500.0,0.00055068,120]
[320959207,1711721527483,-500.0,0.00055068,120]
[320959208,1711721527494,-500.0,0.00055068,2]
[320959209,1711721527507,-500.0,0.00055068,120]
[320959210,1711721527521,-539.4,0.00055068,120]
[320959211,1711721527530,-188.61,0.00055068,120]
[320959212,1711721527540,-500.0,0.00055068,120]
[320959213,1711721527550,-500.0,0.00055068,120]
[320959214,1711721527559,-695.58,0.00055068,120]
[320959215,1711721527568,-1476.12,0.00055068,120]
[320959216,1711721527578,-152.101778,0.00055068,120]
[320959217,1711721527588,-900.44,0.00055068,120]
[320959218,1711721527598,-546.4,0.00055068,120]
[320959219,1711721527607,-607.78,0.00055068,120]
[320959220,1711721527617,-251.991956,0.00055068,120]
[320959221,1711721527627,-1452.59,0.00055068,120]
[320959222,1711721527636,-987.25,0.00055068,120]
[320959223,1711721527646,-251.991956,0.00055068,120]
[320959224,1711721527655,-151.895622,0.00055068,120]
[320959225,1711721527665,-743.76,0.00055068,120]
[320959226,1711721527675,-939.77,0.00055068,120]
[320959227,1711721527684,-386.45138355,0.00055068,120]
[320959228,1711721527693,-894.21,0.00055068,120]
[320959229,1711721527703,-1140.0,0.00055068,120]
[320959230,1711721527712,-1627.67,0.00055068,120]
[320959231,1711721527722,-616.311373,0.00055068,120]
[320959232,1711721527731,-151.0,0.00055068,120]
[320959233,1711721527742,-1032.63,0.00055068,120]
[320959234,1711721527752,-508.58,0.00055068,120]
[320959235,1711721527762,-3279.75,0.00055068,120]
[320959236,1711721527773,-3061.85,0.00055068,120]
[320959237,1711721527784,-616.311373,0.00055068,120]
[320959238,1711721527793,-151.0,0.00055068,120]
[320959239,1711721527803,-1038.05,0.00055068,120]
[320959240,1711721527812,-522.71,0.00055068,120]
[320959241,1711721527822,-1319.96,0.00055068,120]
[320959242,1711721527831,-15867.17,0.00055068,120]
[320959243,1711721527841,-1675.75,0.00055068,120]
[320959244,1711721527850,-151.0,0.00055068,120]
[320959245,1711721527860,-1560.02,0.00055068,120]
[320959246,1711721527869,-1118.96,0.00055068,120]
[320959247,1711721527879,-151.0,0.00055068,120]
[320959248,1711721527888,-967.68,0.00055068,120]
[320959249,1711721527897,-608.15,0.00055068,120]
[320959250,1711721527907,-1421.12,0.00055068,120]
[320959251,1711721527917,-796.35,0.00055068,120]
[320959252,1711721527926,-583.97,0.00055068,120]
[320959253,1711721527936,-1038.38,0.00055068,120]
[320959254,1711721527946,-7190.42,0.00055068,120]
[320959255,1711721527955,-1116.7,0.00055068,120]
[320959256,1711721527964,-509.07,0.00055068,120]
[320959257,1711721527973,-702.78,0.00055068,120]
[320959258,1711721527982,-3016.23,0.00055068,120]
[320959259,1711721527991,-1173.93,0.00055068,120]
[320959260,1711721528001,-1914.75,0.00055068,120]
[320959261,1711721528010,-1271.74,0.00055068,120]
[320959262,1711721528019,-620.53,0.00055068,120]
[320959263,1711721528028,-656.72,0.00055068,120]
[320959264,1711721528037,-2949.66,0.00055068,120]
[320959265,1711721528047,-666.66,0.00055068,120]
[320959266,1711721528056,-755.48,0.00055068,120]
[320959267,1711721528065,-1139.02,0.00055068,120]
[320959268,1711721528075,-504.5,0.00055068,120]
[320959269,1711721528084,-2635.4,0.00055068,120]
[320959270,1711721528093,-550.55,0.00055068,120]
[320959271,1711721528102,-1127.22,0.00055068,120]
[320959272,1711721528111,-571.73,0.00055068,120]
[320959273,1711721528120,-561.64,0.00055068,120]
[320959274,1711721528129,-659.67,0.00055068,120]
[320959275,1711721528138,-5797.8,0.00055068,120]
[320959276,1711721528148,-852.21,0.00055068,120]
[320959277,1711721528157,-953.39,0.00055068,120]
[320959278,1711721528166,-538.99,0.00055068,120]
[320959279,1711721528175,-777.84,0.00055068,120]
[320959280,1711721528184,-1011.18,0.00055068,120]
[320959281,1711721528194,-831.93,0.00055068,120]
[320959282,1711721528203,-758.01,0.00055068,120]
[320959283,1711721528212,-1019.27,0.00055068,120]
[320959284,1711721528221,-1859.09,0.00055068,120]
[320959285,1711721528230,-1375.8,0.00055068,120]
[320959286,1711721528240,-1237.12,0.00055068,120]
[320959287,1711721528250,-1303.91,0.00055068,120]
[320959288,1711721528260,-2340.36,0.00055068,120]
[320959289,1711721528270,-1120.19,0.00055068,120]
[320959290,1711721528280,-599.9,0.00055068,120]
[320959291,1711721528290,-518.83,0.00055068,120]
[320959292,1711721528299,-1073.01,0.00055068,120]
[320959293,1711721528309,-2553.22,0.00055068,120]
[320959294,1711721528318,-2095.82,0.00055068,120]
[320959295,1711721528328,-1620.53,0.00055068,120]
[320959296,1711721528337,-759.3,0.00055068,120]
[320959297,1711721528347,-1293.35,0.00055068,120]
[320959298,1711721528356,-521.52,0.00055068,120]
[320959299,1711721528365,-3958.07,0.00055068,120]
[320959300,1711721528374,-827.58,0.00055068,120]
[320959301,1711721528384,-528.84,0.00055068,120]
[320959302,1711721528393,-334.32662957,0.00055068,120]
[320959303,1711721528402,-10208.37,0.00055068,120]
[320959304,1711721528412,-1483.13,0.00055068,120]
[320959305,1711721528422,-709.97,0.00055068,120]
[320959306,1711721528431,-2258.08,0.00055068,120]
[320959307,1711721528440,-811.38,0.00055068,120]
[320959308,1711721528449,-1213.11,0.00055068,120]
[320959309,1711721528459,-679.62,0.00055068,120]
[320959310,1711721528469,-1520.3,0.00055068,120]
[320959311,1711721528478,-1260.6,0.00055068,120]
[320959312,1711721528488,-1157.9,0.00055068,120]
[320959313,1711721528497,-920.83,0.00055068,120]
[320959314,1711721528508,-2746.44,0.00055068,120]
[320959315,1711721528517,-591.05,0.00055068,120]
[320959316,1711721528526,-788.73,0.00055068,120]
[320959317,1711721528535,-929.65,0.00055068,120]
[320959318,1711721528544,-1784.97,0.00055068,120]
[320959319,1711721528553,-921.81,0.00055068,120]
[320959320,1711721528562,-1005.38,0.00055068,120]
[320959321,1711721528571,-754.19,0.00055068,21]
[320959322,1711721528580,-1513.84,0.00055068,120]
[320959323,1711721528590,-556.58,0.00055068,120]
[320959324,1711721528599,-3254.17,0.00055068,120]
[320959325,1711721528608,-1273.09,0.00055068,120]
[320959326,1711721528617,-741.31,0.00055068,120]
[320959327,1711721528626,-622.97,0.00055068,120]
[320959328,1711721528635,-3311.84,0.00055068,120]
[320959329,1711721528644,-747.32,0.00055068,120]
[320959330,1711721528653,-579.78,0.00055068,120]
[320959331,1711721528662,-639.33,0.00055068,120]
[320959332,1711721528672,-1490.8,0.00055068,120]
[320959333,1711721528681,-1635.18,0.00055068,120]
[320959334,1711721528689,-553.82,0.00055068,120]
[320959335,1711721528698,-1076.6,0.00055068,120]
[320959336,1711721528707,-1031.96,0.00055068,120]
[320959337,1711721528716,-1467.64,0.00055068,120]
[320959338,1711721528725,-627.97,0.00055068,120]
[320959339,1711721528734,-578.16,0.00055068,120]
[320959340,1711721528745,-208.25028726,0.00055144,102]
[320959341,1711721528756,-159.30357396,0.0005519,120]
[320959342,1711721528767,-233.52222222,0.00055233,120]
[320959343,1711721528775,-527.0,0.00055342,120]
[320959344,1711721528786,-643.25434803,0.00055342,120]
[320959345,1711721528795,-520.11,0.00055342,120]
[320959346,1711721528804,-702.15,0.00055342,120]
[320959347,1711721528814,-2032.52,0.00055342,120]
[320959348,1711721528823,-523.19,0.00055342,120]
[320959349,1711721528833,-536.91,0.00055342,120]
[320959350,1711721528843,-500.0,0.00055342,120]
[320959351,1711721528853,-540.69,0.00055342,120]
[320959352,1711721528863,-511.3,0.00055342,120]
[320959353,1711721528874,-500.0,0.00055342,120]
[320959354,1711721528883,-478.82434754,0.00055342,120]
[320959355,1711721528893,-580.46899496,0.00055342,2]
[320959356,1711721528902,-500.0,0.00055342,120]
[320959357,1711721528912,-539.4,0.00055342,120]
[320959358,1711721528920,-188.61,0.00055342,120]
[320959359,1711721528929,-500.0,0.00055342,120]
[320959360,1711721528939,-195.38,0.00055342,120]
[320959361,1711721528947,-695.58,0.00055342,120]
[320959362,1711721528956,-1476.12,0.00055342,120]
[320959363,1711721528965,-900.44,0.00055342,120]
[320959364,1711721528974,-546.4,0.00055342,120]
[320959365,1711721528982,-607.78,0.00055342,120]
[320959366,1711721528991,-1452.59,0.00055342,120]
[320959367,1711721529001,-987.25,0.00055342,120]
[320959368,1711721529010,-743.76,0.00055342,120]
[320959369,1711721529019,-939.77,0.00055342,120]
[320959370,1711721529028,-894.21,0.00055342,120]
[320959371,1711721529037,-1140.0,0.00055342,120]
[320959372,1711721529047,-1627.67,0.00055342,120]
[320959373,1711721529056,-1032.63,0.00055342,120]
[320959374,1711721529065,-508.58,0.00055342,120]
[320959375,1711721529074,-3279.75,0.00055342,120]
[320959376,1711721529083,-3061.85,0.00055342,120]
[320959377,1711721529093,-1038.05,0.00055342,120]
[320959378,1711721529102,-522.71,0.00055342,120]
[320959379,1711721529111,-1319.96,0.00055342,120]
[320959380,1711721529120,-15867.17,0.00055342,120]
[320959381,1711721529129,-1675.75,0.00055342,120]
[320959382,1711721529138,-1560.02,0.00055342,120]
[320959383,1711721529147,-1118.96,0.00055342,120]
[320959384,1711721529156,-967.68,0.00055342,120]
[320959385,1711721529164,-608.15,0.00055342,120]
[320959386,1711721529174,-1421.12,0.00055342,120]
[320959387,1711721529186,-796.35,0.00055342,120]
[320959388,1711721529195,-583.97,0.00055342,120]
[320959389,1711721529204,-1038.38,0.00055342,120]
[320959390,1711721529213,-7190.42,0.00055342,120]
[320959391,1711721529223,-1116.7,0.00055342,120]
[320959392,1711721529232,-509.07,0.00055342,120]
[320959393,1711721529241,-702.78,0.00055342,120]
[320959394,1711721529250,-3016.23,0.00055342,120]
[320959395,1711721529259,-1173.93,0.00055342,120]
[320959396,1711721529268,-1914.75,0.00055342,120]
[320959397,1711721529278,-1271.74,0.00055342,120]
[320959398,1711721529288,-620.53,0.00055342,120]
[320959399,1711721529297,-656.72,0.00055342,120]
[320959400,1711721529306,-2949.66,0.00055342,120]
[320959401,1711721529315,-666.66,0.00055342,120]
[320959402,1711721529325,-1139.02,0.00055342,120]
[320959403,1711721529334,-755.48,0.00055342,120]
[320959404,1711721529343,-504.5,0.00055342,120]
[320959405,1711721529352,-2635.4,0.00055342,120]
[320959406,1711721529361,-550.55,0.00055342,120]
[320959407,1711721529370,-1127.22,0.00055342,120]
[320959408,1711721529379,-571.73,0.00055342,120]
[320959409,1711721529388,-561.64,0.00055342,120]
[320959410,1711721529397,-659.67,0.00055342,120]
[320959411,1711721529406,-5797.8,0.00055342,120]
[320959412,1711721529416,-852.21,0.00055342,120]
[320959413,1711721529424,-953.39,0.00055342,120]
[320959414,1711721529433,-538.99,0.00055342,120]
[320959415,1711721529442,-777.84,0.00055342,120]
[320959416,1711721529451,-1011.18,0.00055342,120]
[320959417,1711721529460,-831.93,0.00055342,120]
[320959418,1711721529469,-758.01,0.00055342,120]
[320959419,1711721529478,-1019.27,0.00055342,120]
[320959420,1711721529488,-1859.09,0.00055342,120]
[320959421,1711721529497,-1237.12,0.00055342,120]
[320959422,1711721529507,-1375.8,0.00055342,120]
[320959423,1711721529516,-1303.91,0.00055342,120]
[320959424,1711721529526,-2340.36,0.00055342,120]
[320959425,1711721529535,-1120.19,0.00055342,120]
[320959426,1711721529545,-599.9,0.00055342,120]
[320959427,1711721529554,-518.83,0.00055342,120]
[320959428,1711721529564,-1073.01,0.00055342,120]
[320959429,1711721529573,-2553.22,0.00055342,120]
[320959430,1711721529583,-2095.82,0.00055342,120]
[320959431,1711721529593,-1620.53,0.00055342,120]
[320959432,1711721529602,-759.3,0.00055342,120]
[320959433,1711721529612,-1293.35,0.00055342,120]
[320959434,1711721529621,-521.52,0.00055342,120]
[320959435,1711721529631,-3958.07,0.00055342,120]
[320959436,1711721529640,-827.58,0.00055342,120]
[320959437,1711721529649,-528.84,0.00055342,120]
[320959438,1711721529659,-10208.37,0.00055342,120]
[320959439,1711721529669,-1483.13,0.00055342,120]
[320959440,1711721529678,-709.97,0.00055342,120]
[320959441,1711721529687,-2258.08,0.00055342,120]
[320959442,1711721529696,-811.38,0.00055342,120]
[320959443,1711721529706,-1213.11,0.00055342,120]
[320959444,1711721529715,-679.62,0.00055342,120]
[320959445,1711721529724,-1260.6,0.00055342,120]
[320959446,1711721529733,-1157.9,0.00055342,120]
[320959447,1711721529744,-920.83,0.00055342,120]
[320959448,1711721529753,-2746.44,0.00055342,120]
[320959449,1711721529763,-591.05,0.00055342,120]
[320959450,1711721529773,-788.73,0.00055342,120]
[320959451,1711721529782,-929.65,0.00055342,120]
[320959452,1711721529791,-1784.97,0.00055342,120]
[320959453,1711721529800,-921.81,0.00055342,120]
[320959454,1711721529809,-1005.38,0.00055342,120]
[320959455,1711721529818,-754.19,0.00055342,21]
[320959456,1711721529827,-1513.84,0.00055342,120]
[320959457,1711721529837,-556.58,0.00055342,120]
[320959458,1711721529846,-3254.17,0.00055342,120]
[320959459,1711721529855,-1273.09,0.00055342,120]
[320959460,1711721529864,-741.31,0.00055342,120]
[320959461,1711721529874,-622.97,0.00055342,120]
[320959462,1711721529883,-3311.84,0.00055342,120]
[320959463,1711721529892,-747.32,0.00055342,120]
[320959464,1711721529901,-579.78,0.00055342,120]
[320959465,1711721529910,-639.33,0.00055342,120]
[320959466,1711721529919,-1490.8,0.00055342,120]
[320959467,1711721529928,-1635.18,0.00055342,120]
[320959468,1711721529937,-553.82,0.00055342,120]
[320959469,1711721529947,-1076.6,0.00055342,120]
[320959470,1711721529956,-1031.96,0.00055342,120]
[320959471,1711721529965,-1467.64,0.00055342,120]
[320959472,1711721529974,-627.97,0.00055342,120]
[320959473,1711721529983,-578.16,0.00055342,120]
[320959474,1711721529992,-377.0,0.00055363,30]
[320959475,1711721530001,-462.0,0.000554,40]
[320959476,1711721530011,-537.0,0.00055415,120]
[320959477,1711721530020,-1216.0,0.00055415,120]
[320959478,1711721530028,-1253.0,0.00055415,120]
[320959479,1711721530037,-2308.0,0.000555,19]
[320959480,1711721530047,-1258.83,0.0005551,2]
[320959481,1711721530056,-159.49680832,0.00055515,120]
[320959482,1711721530065,-150.0,0.00055571,120]
[320959483,1711721530079,-150.0,0.00055571,120]
[320959484,1711721530098,-150.0,0.00055571,120]
[320959485,1711721530112,-150.0,0.00055571,120]
[320959486,1711721530121,-150.0,0.00055571,120]
[320959487,1711721530130,-150.0,0.00055571,120]
[320959488,1711721530138,-150.0,0.00055571,120]
[320959489,1711721530147,-150.0,0.00055571,120]
[320959490,1711721530156,-150.0,0.00055571,120]
[320959491,1711721530165,-150.0,0.00055571,120]
[320959492,1711721530175,-150.0,0.00055571,120]
[320959493,1711721530184,-150.0,0.00055571,120]
[320959494,1711721530193,-150.0,0.00055571,120]
[320959495,1711721530202,-150.0,0.00055571,120]
[320959496,1711721530211,-527.15033094,0.00055616,120]
[320959497,1711721530221,-520.12936717,0.00055616,120]
[320959498,1711721530230,-702.20020043,0.00055616,120]
[320959499,1711721530240,-2032.6633011,0.00055616,120]
[320959500,1711721530249,-523.39739144,0.00055616,120]
[320959501,1711721530259,-537.02676948,0.00055616,120]
[320959502,1711721530268,-376.36270837,0.00055616,120]
[320959503,1711721530277,-540.91699383,0.00055616,120]
[320959504,1711721530286,-511.34818485,0.00055616,120]
[320959505,1711721530296,-221.32,0.00055616,120]
[320959506,1711721530305,-358.87596243,0.00055616,120]
[320959507,1711721530314,-539.62397661,0.00055616,120]
[320959508,1711721530324,-188.74283814,0.00055616,120]
[320959509,1711721530334,-151.0,0.00055616,120]
[320959510,1711721530440,-151.0,0.00055616,120]
[320959511,1711721530455,-151.0,0.00055616,120]
[320959512,1711721530465,-151.0,0.00055616,120]
[320959513,1711721530474,-151.0,0.00055616,120]
[320959514,1711721530485,-151.0,0.00055616,120]
[320959515,1711721530495,-151.0,0.00055616,120]
[320959516,1711721530505,-266.072358,0.00055616,120]
[320959517,1711721530515,-151.0,0.00055616,120]
[320959518,1711721530525,-151.0,0.00055616,120]
[320959519,1711721530534,-695.74179892,0.00055616,120]
[320959520,1711721530544,-151.0,0.00055616,120]
[320959521,1711721530555,-1476.22135814,0.00055616,120]
[320959522,1711721530564,-900.60260479,0.00055616,120]
[320959523,1711721530575,-546.60978393,0.00055616,120]
[320959524,1711721530585,-607.84646164,0.00055616,120]
[320959525,1711721530595,-1452.68,0.00055616,120]
[320959526,1711721530605,-987.44679435,0.00055616,120]
[320959527,1711721530615,-743.9855176,0.00055616,120]
[320959528,1711721530625,-939.99920491,0.00055616,120]
[320959529,1711721530635,-894.30422079,0.00055616,120]
[320959530,1711721530645,-1140.19158069,0.00055616,120]
[320959531,1711721530655,-1627.80054626,0.00055616,120]
[320959532,1711721530664,-1032.76591681,0.00055616,120]
[320959533,1711721530673,-508.63669222,0.00055616,120]
[320959534,1711721530683,-3279.91760939,0.00055616,120]
[320959535,1711721530693,-3061.9409314,0.00055616,120]
[320959536,1711721530702,-1038.05,0.00055616,120]
[320959537,1711721530713,-522.80343962,0.00055616,120]
[320959538,1711721530722,-1320.01308456,0.00055616,120]
[320959539,1711721530732,-15867.1879,0.00055616,120]
[320959540,1711721530743,-1675.97,0.00055616,120]
[320959541,1711721530755,-1560.23638996,0.00055616,120]
[320959542,1711721530768,-1119.15846118,0.00055616,120]
[320959543,1711721530779,-967.79504427,0.00055616,120]
[320959544,1711721530790,-151.0,0.00055616,120]
[320959545,1711721530800,-608.28646848,0.00055616,120]
[320959546,1711721530811,-1421.3152038,0.00055616,120]
[320959547,1711721530821,-151.584198,0.00055616,120]
[320959548,1711721530831,-796.45594415,0.00055616,120]
[320959549,1711721530841,-584.03619718,0.00055616,120]
[320959550,1711721530851,-1038.47661028,0.00055616,120]
[320959551,1711721530862,-7190.62621766,0.00055616,120]
[320959552,1711721530872,-1116.82082649,0.00055616,120]
[320959553,1711721530882,-151.0,0.00055616,120]
[320959554,1711721530891,-509.3056519,0.00055616,120]
[320959555,1711721530901,-486.615457,0.00055616,120]
[320959556,1711721530911,-151.0,0.00055616,120]
[320959557,1711721530921,-486.615457,0.00055616,120]
[320959558,1711721530930,-702.87470359,0.00055616,120]
[320959559,1711721530942,-3016.36345564,0.00055616,120]
[320959560,1711721530952,-151.0,0.00055616,120]
[320959561,1711721530962,-151.0,0.00055616,120]
[320959562,1711721530971,-151.0,0.00055616,120]
[320959563,1711721530981,-1174.13802583,0.00055616,120]
[320959564,1711721530991,-151.0,0.00055616,45]
[320959565,1711721531001,-1914.79522738,0.00055616,120]
[320959566,1711721531012,-1271.91105948,0.00055616,120]
[320959567,1711721531022,-151.0,0.00055616,7]
[320959568,1711721531031,-620.53834859,0.00055616,120]
[320959569,1711721531041,-656.80882454,0.00055616,120]
[320959570,1711721531051,-151.0,0.00055616,120]
[320959571,1711721531061,-151.0,0.00055616,120]
[320959572,1711721531070,-151.0,0.00055616,120]
[320959573,1711721531080,-2949.67208916,0.00055616,120]
[320959574,1711721531089,-151.760302,0.00055616,21]
[320959575,1711721531100,-151.0,0.00055616,120]
[320959576,1711721531109,-151.858277,0.00055616,3]
[320959577,1711721531118,-666.82,0.00055616,120]
[320959578,1711721531128,-1139.02511154,0.00055616,120]
[320959579,1711721531137,-755.6565593,0.00055616,120]
[320959580,1711721531146,-504.63,0.00055616,120]
[320959581,1711721531155,-550.61354918,0.00055616,120]
[320959582,1711721531165,-2635.49018406,0.00055616,120]
[320959583,1711721531175,-1127.23733252,0.00055616,120]
[320959584,1711721531186,-571.78017704,0.00055616,120]
[320959585,1711721531197,-561.69087009,0.00055616,120]
[320959586,1711721531208,-659.80266085,0.00055616,120]
[320959587,1711721531218,-5797.9162,0.00055616,120]
[320959588,1711721531228,-852.30847607,0.00055616,120]
[320959589,1711721531238,-953.50612426,0.00055616,120]
[320959590,1711721531247,-539.11,0.00055616,120]
[320959591,1711721531259,-777.96603874,0.00055616,120]
[320959592,1711721531268,-1011.37011687,0.00055616,120]
[320959593,1711721531277,-831.94615915,0.00055616,120]
[320959594,1711721531288,-758.02360284,0.00055616,120]
[320959595,1711721531298,-1019.47200984,0.00055616,120]
[320959596,1711721531308,-1859.27697014,0.00055616,120]
[320959597,1711721531319,-1237.24296464,0.00055616,120]
[320959598,1711721531329,-1375.97696659,0.00055616,120]
[320959599,1711721531340,-1304.03565805,0.00055616,120]
[320959600,1711721531350,-2340.49631426,0.00055616,120]
[320959601,1711721531360,-1120.42768863,0.00055616,120]
[320959602,1711721531370,-599.9,0.00055616,120]
[320959603,1711721531381,-519.00244998,0.00055616,120]
[320959604,1711721531391,-1073.23572039,0.00055616,120]
[320959605,1711721531401,-2553.39821543,0.00055616,120]
[320959606,1711721531412,-2096.04,0.00055616,120]
[320959607,1711721531422,-1620.64831073,0.00055616,120]
[320959608,1711721531432,-759.46885906,0.00055616,120]
[320959609,1711721531442,-1293.42705377,0.00055616,120]
[320959610,1711721531452,-521.62282317,0.00055616,120]
[320959611,1711721531462,-3958.21080566,0.00055616,120]
[320959612,1711721531472,-529.03831293,0.00055616,120]
[320959613,1711721531482,-827.66680229,0.00055616,120]
[320959614,1711721531491,-10208.45254261,0.00055616,120]
[320959615,1711721531501,-1483.16717071,0.00055616,120]
[320959616,1711721531512,-710.07114077,0.00055616,120]
[320959617,1711721531522,-2258.21379815,0.00055616,120]
[320959618,1711721531531,-811.46026478,0.00055616,120]
[320959619,1711721531540,-1213.15203117,0.00055616,120]
[320959620,1711721531550,-679.75933747,0.00055616,120]
[320959621,1711721531559,-1260.66039729,0.00055616,120]
[320959622,1711721531568,-1158.13860379,0.00055616,120]
[320959623,1711721531578,-921.06722408,0.00055616,120]
[320959624,1711721531587,-2746.49546739,0.00055616,120]
[320959625,1711721531596,-591.23776585,0.00055616,120]
[320959626,1711721531605,-788.96998862,0.00055616,120]
[320959627,1711721531614,-929.76911274,0.00055616,120]
[320959628,1711721531623,-1784.99393641,0.00055616,120]
[320959629,1711721531632,-921.88650551,0.00055616,120]
[320959630,1711721531641,-1005.40564585,0.00055616,120]
[320959631,1711721531650,-754.36,0.00055616,21]
[320959632,1711721531660,-1513.84,0.00055616,120]
[320959633,1711721531669,-556.74907217,0.00055616,120]
[320959634,1711721531679,-3254.34403658,0.00055616,120]
[320959635,1711721531687,-1273.14693231,0.00055616,120]
[320959636,1711721531697,-741.43568767,0.00055616,120]
[320959637,1711721531706,-622.9742811,0.00055616,120]
[320959638,1711721531716,-3311.84,0.00055616,120]
[320959639,1711721531725,-747.41,0.00055616,120]
[320959640,1711721531734,-579.81958597,0.00055616,120]
[320959641,1711721531747,-639.50664987,0.00055616,120]
[320959642,1711721531757,-1490.85327621,0.00055616,120]
[320959643,1711721531766,-1635.40642246,0.00055616,120]
[320959644,1711721531776,-553.99,0.00055616,120]
[320959645,1711721531787,-1076.78193344,0.00055616,120]
[320959646,1711721531796,-1032.14452953,0.00055616,120]
[320959647,1711721531805,-1467.82913774,0.00055616,120]
[320959648,1711721531814,-628.1040584,0.00055616,120]
[320959649,1711721531824,-578.22595947,0.00055616,120]
[320959650,1711721531833,-800.0,0.00055692,120]
[320959651,1711721531842,-6920.17337439,0.00055742,2]
[320959652,1711721531851,-1081.49618554,0.00055809,33]
[320959653,1711721531860,-233.52222222,0.00055836,120]
[320959654,1711721531869,-1038.05,0.0005589,120]
[320959655,1711721531879,-1520.3,0.0005589,120]
[320959656,1711721531887,-3311.84,0.0005589,120]
[320959657,1711721531898,-151.0,0.0005589,120]
[320959658,1711721531907,-549.621577,0.000559,40]
[320959659,1711721531916,-156.89454056,0.00055907,120]
[320959660,1711721531925,-377.0,0.00055928,30]
[320959661,1711721531934,-200.0,0.00055938,120]
[320959662,1711721531943,-150.0,0.00055954,120]